bitfinex-derivatives/quotes_ETHF0:USTF0_20240910
["timestamp","ask_amount","ask_price","bid_price","bid_amount"]
[1725997641808,0.41951,2383.6,2383.4,0.41953]
[1725997642022,0.41951,2383.6,2383.0,2.52343562]
[1725997642023,0.4195,2383.7,2383.5,0.41952]
[1725997642316,0.41949,2383.7,2383.5,0.41951]
[1725997642519,3.23779703,2384.0,2383.6,0.41951]
[1725997642520,0.41948,2383.8,2383.6,0.41951]
[1725997642720,0.41948,2383.8,2383.6,0.80551]
[1725997643312,0.41948,2383.8,2383.6,0.386]
[1725997643518,4.03,2383.9,2382.9,41.88051849]
[1725997643719,0.41961,2383.0,2382.9,41.5643]
[1725997644716,2.18917703,2383.3,2382.9,45.7611]
[1725997645022,0.41959,2383.2,2382.9,41.5643]
[1725997645321,2.18917703,2383.5,2382.9,41.5643]
[1725997645629,1.04886,2383.4,2382.9,41.98392]
[1725997646019,0.4196,2383.1,2382.9,41.98392]
[1725997646417,0.4196,2383.1,2382.9,46.17992]
[1725997646626,0.4196,2383.1,2382.9,45.7603]
[1725997646816,2.18917703,2383.5,2383.1,0.41959]
[1725997647012,0.41958,2383.2,2383.0,0.4196]
[1725997647218,0.41959,2383.2,2383.0,0.4196]
[1725997647713,0.41959,2383.2,2382.9,41.5643]
[1725997647714,0.4196,2383.1,2382.9,41.5643]
[1725997647915,0.4196,2383.1,2383.0,0.41961]
[1725997648119,0.4196,2383.1,2383.0,4.61561]
[1725997648316,0.41959,2383.2,2383.0,4.61561]
[1725997648619,1.04882,2383.5,2383.1,0.41959]
[1725997648819,1.04882,2383.5,2382.9,41.5643]
[1725997648820,0.41954,2383.4,2383.2,0.41957]
[1725997649118,0.41955,2383.4,2383.2,0.41957]
[1725997649316,0.41957,2383.3,2383.2,4.196]
[1725997649525,0.41955,2383.4,2383.2,0.41957]
[1725997649722,3.63462703,2383.7,2383.2,0.41956]
[1725997649918,0.41955,2383.4,2383.2,0.41956]
[1725997650318,0.41953,2383.5,2383.3,0.41955]
[1725997650523,0.41955,2383.4,2383.3,0.41956]
[1725997650726,1.44545,2383.7,2383.3,0.41956]
[1725997650929,0.41952,2383.6,2383.4,0.3841]
[1725997651225,0.41951,2383.6,2383.5,0.3742]
[1725997651424,0.41951,2383.6,2383.5,4.5694]
[1725997652126,0.41951,2383.6,2383.5,0.3742]
[1725997653128,0.41953,2383.5,2383.4,0.3841]
[1725997653320,0.41957,2383.3,2383.1,0.79379]
[1725997653520,0.41958,2383.2,2383.1,0.3742]
[1725997653827,0.41961,2383.0,2382.9,40.8]
[1725997654118,0.41959,2383.2,2382.9,41.21963]
[1725997654320,0.4196,2383.1,2382.9,44.48962]
[1725997654820,0.41959,2383.2,2383.0,0.41961]
[1725997655117,3.62616703,2383.4,2382.9,44.07]
[1725997655118,0.4196,2383.1,2382.9,44.48962]
[1725997655629,0.41958,2383.2,2383.0,0.4196]
[1725997655825,0.4196,2383.1,2383.0,0.4196]
[1725997656015,0.4196,2383.1,2382.9,44.48962]
[1725997656220,0.41961,2383.1,2382.9,44.48962]
[1725997656623,0.41961,2383.1,2383.0,0.41961]
[1725997656821,0.41961,2383.1,2382.9,44.07]
[1725997657017,3.23803703,2383.5,2383.1,0.41959]
[1725997657230,0.41957,2383.3,2383.2,0.3867]
[1725997658329,0.41961,2383.0,2382.9,40.8]
[1725997658631,1.46865,2383.0,2382.9,40.8]
[1725997658928,12.38597703,2383.0,2382.2,1.08051849]
[1725997659132,0.41971,2382.5,2382.2,1.22375]
[1725997659431,4.69368,2382.9,2382.3,40.8]
[1725997659432,3.61285703,2382.9,2382.3,40.8]
[1725997659928,0.41972,2382.4,2382.3,40.8]
[1725997660819,2.18917703,2382.7,2382.3,40.8]
[1725997660820,0.41972,2382.5,2382.3,40.8]
[1725997661018,0.41971,2382.5,2382.3,40.8]
[1725997661223,0.41972,2382.4,2382.3,40.8]
[1725997661635,0.41971,2382.5,2382.3,40.8]
[1725997661826,0.41971,2382.5,2382.3,41.21973]
[1725997662029,0.41972,2382.4,2382.3,40.8]
[1725997662420,1.46902,2382.4,2382.3,40.8]
[1725997662627,5.66662,2382.4,2382.3,40.8]
[1725997664126,1.41899,2382.5,2381.9,0.7813]
[1725997664338,2.55887703,2382.5,2381.9,0.7813]
[1725997664634,0.41975,2382.3,2382.0,41.21979]
[1725997664936,0.41975,2382.2,2382.0,41.21979]
[1725997665425,0.41975,2382.2,2382.0,40.8]
[1725997665625,0.41974,2382.3,2382.0,41.21978]
[1725997665824,0.41973,2382.4,2382.1,0.41976]
[1725997666235,0.41974,2382.3,2382.1,0.41976]
[1725997666434,1.44863,2382.6,2382.2,0.41975]
[1725997666435,0.41973,2382.4,2382.2,0.41975]
[1725997666634,0.41974,2382.3,2382.1,0.41976]
[1725997667435,0.41975,2382.3,2382.0,40.8]
[1725997667643,0.41975,2382.3,2382.0,44.9976]
[1725997667830,0.41975,2382.3,2382.1,0.80877]
[1725997668242,0.41974,2382.3,2382.2,0.41975]
[1725997668439,0.41971,2382.5,2382.3,0.41973]
[1725997668635,0.41971,2382.5,2382.4,0.3967]
[1725997669832,0.41975,2382.3,2382.1,0.389]
[1725997670029,0.41975,2382.3,2382.1,0.80877]
[1725997670244,0.41973,2382.4,2382.2,0.41975]
[1725997670443,1.04916,2382.8,2382.1,0.389]
[1725997670633,0.4197,2382.6,2382.4,0.41971]
[1725997670834,0.4197,2382.6,2382.5,0.3967]
[1725997671240,0.41968,2382.7,2382.5,0.3967]
[1725997671433,0.41968,2382.6,2382.5,0.3967]
[1725997672141,2.18917703,2383.2,2382.5,10.5935]
[1725997672338,2.73647129,2383.4,2382.5,10.5935]
[1725997672339,1.04892,2383.3,2382.6,0.7608]
[1725997672543,0.4196,2383.1,2382.6,0.7608]
[1725997672737,0.4196,2383.1,2382.8,0.41964]
[1725997673435,0.41962,2383.0,2382.7,41.21966]
[1725997673642,0.41962,2383.0,2382.8,0.41965]
[1725997674743,0.41961,2383.1,2382.8,0.41965]
[1725997674933,0.41963,2383.0,2382.7,41.21965]
[1725997675133,1.04892,2383.3,2382.7,41.21965]
[1725997675134,1.049,2383.1,2382.7,40.8]
[1725997675342,0.41964,2382.9,2382.7,41.21967]
[1725997675840,0.41965,2382.8,2382.7,40.8]
[1725997676642,0.41965,2382.8,2382.7,44.9968]
[1725997677246,0.41965,2382.8,2382.7,40.8]
[1725997677743,0.41965,2382.8,2382.7,44.9968]
[1725997678135,0.41965,2382.8,2382.7,40.8]
[1725997679447,3.23813703,2383.2,2382.7,40.8]
[1725997679448,1.04902,2383.1,2382.7,40.8]
[1725997679649,0.41965,2382.8,2382.7,40.8]
[1725997681148,1.46878,2382.8,2382.7,40.8]
[1725997681852,0.41971,2382.5,2382.3,0.41973]
[1725997682051,1.04919,2382.7,2382.3,0.7779]
[1725997682244,1.44139,2382.7,2382.3,0.7779]
[1725997682444,1.44139,2382.7,2382.4,40.8]
[1725997682752,0.41969,2382.6,2382.4,40.8]
[1725997682941,0.4197,2382.5,2382.4,40.8]
[1725997684746,0.41976,2382.2,2382.0,0.3974]
[1725997684949,0.41976,2382.2,2382.0,0.7883]
[1725997685150,0.41976,2382.2,2382.1,40.8]
[1725997688441,0.41981,2381.9,2381.3,3.491]
[1725997688646,0.4198,2382.0,2381.6,0.7587]
[1725997688846,3.69976,2382.2,2381.6,1.17855]
[1725997688847,0.41981,2381.9,2381.6,1.17855]
[1725997689053,0.41982,2381.9,2381.7,40.8]
[1725997689958,0.41982,2381.8,2381.7,40.8]
[1725997690257,4.74939,2381.8,2381.7,40.8]
[1725997690555,4.74939,2381.8,2381.1,3.28]
[1725997690556,1.04968,2381.6,2381.1,1.4171453]
[1725997690856,0.41991,2381.4,2381.1,41.7972053]
[1725997691249,0.41991,2381.4,2381.2,0.41993]
[1725997691444,0.41989,2381.5,2381.2,0.41993]
[1725997691652,0.41987,2381.6,2381.2,3.28]
[1725997691957,0.41988,2381.5,2381.3,0.4199]
[1725997692259,0.41987,2381.6,2381.3,0.4199]
[1725997692457,0.41988,2381.5,2381.3,0.4199]
[1725997693049,0.41989,2381.5,2381.1,44.8627]
[1725997693256,1.42125,2381.7,2381.3,0.41991]
[1725997693460,0.4199,2381.4,2381.3,0.41991]
[1725997694155,0.41989,2381.5,2381.3,0.41991]
[1725997694557,0.4199,2381.4,2381.2,0.41992]
[1725997694759,0.4199,2381.4,2381.3,0.41991]
[1725997695157,1.42125,2381.7,2381.3,0.41991]
[1725997695570,0.41989,2381.5,2381.3,0.41991]
[1725997696059,1.42125,2381.7,2381.1,42.00264]
[1725997696060,0.41992,2381.3,2381.1,42.00264]
[1725997696268,0.41992,2381.3,2381.2,0.41993]
[1725997696466,0.41992,2381.3,2381.1,42.00263]
[1725997696963,0.41991,2381.4,2381.2,0.41993]
[1725997697354,0.41991,2381.3,2381.1,42.00264]
[1725997697559,0.41993,2381.2,2381.1,40.8]
[1725997697755,1.04983,2381.2,2380.8,1.2023]
[1725997697959,0.41997,2381.0,2380.8,1.20229]
[1725997698263,0.41997,2381.0,2380.9,0.41997]
[1725997698463,0.41998,2380.9,2380.8,41.5823]
[1725997698667,0.41998,2381.0,2380.8,41.5823]
[1725997698861,0.41998,2381.0,2380.8,1.2023]
[1725997699057,0.41998,2380.9,2380.8,1.2023]
[1725997699361,0.41998,2380.9,2380.8,41.197]
[1725997699561,1.04997,2380.9,2380.5,0.80535]
[1725997699957,0.42003,2380.7,2380.6,40.8]
[1725997700459,0.42002,2380.7,2380.6,40.8]
[1725997700861,0.42001,2380.8,2380.6,41.22004]
[1725997701056,0.42001,2380.8,2380.6,40.8]
[1725997701260,1.42639,2381.1,2380.7,0.3843]
[1725997701462,0.42,2380.8,2380.7,0.3843]
[1725997701766,6.14366308,2381.3,2380.9,0.41998]
[1725997701767,4.102,2381.3,2380.9,0.41998]
[1725997701957,0.41995,2381.1,2381.0,0.3738]
[1725997702464,0.41995,2381.1,2381.0,41.1738]
[1725997704060,0.41995,2381.1,2381.0,41.59377]
[1725997704258,0.41995,2381.1,2381.0,41.1738]
[1725997704659,0.41994,2381.2,2381.0,41.1738]
[1725997704865,4.102,2381.3,2381.0,41.5508]
[1725997705062,0.41994,2381.2,2381.0,41.97075]
[1725997705769,1.82713,2381.5,2381.0,41.97076]
[1725997705971,1.82713,2381.5,2381.1,0.41995]
[1725997706269,0.41994,2381.2,2381.0,41.97076]
[1725997706472,0.4199,2381.4,2381.2,0.41992]
[1725997706662,0.4199,2381.4,2381.3,0.3741]
[1725997706968,5.15165,2381.7,2381.3,0.3741]
[1725997706969,4.102,2381.7,2381.4,0.41989]
[1725997707270,0.41986,2381.6,2381.5,0.3885]
[1725997708067,0.41985,2381.7,2381.5,0.80837]
[1725997708261,0.41985,2381.7,2381.5,0.80836]
[1725997708468,0.41984,2381.7,2381.6,0.3685]
[1725997709472,0.41986,2381.6,2381.5,0.3885]
[1725997709769,0.41986,2381.6,2381.5,0.80838]
[1725997709959,0.41985,2381.7,2381.5,0.80838]
[1725997710361,4.32954,2381.9,2381.3,0.3741]
[1725997710568,0.41989,2381.5,2381.3,0.794]
[1725997711273,0.41989,2381.5,2381.4,0.4199]
[1725997711470,0.41989,2381.5,2381.3,0.794]
[1725997711675,0.41984,2381.7,2381.3,0.3741]
[1725997711970,1.04952,2381.9,2381.6,0.41986]
[1725997712174,1.04952,2381.9,2381.5,0.41987]
[1725997712370,0.41987,2381.6,2381.4,0.41988]
[1725997712570,0.41987,2381.6,2381.5,0.41988]
[1725997712775,1.04957,2381.8,2381.4,0.41988]
[1725997712776,0.41988,2381.5,2381.4,0.41988]
[1725997712979,0.41987,2381.6,2381.5,0.41988]
[1725997713970,0.41986,2381.7,2381.5,0.41988]
[1725997714279,0.41986,2381.6,2381.5,0.41988]
[1725997714776,0.41989,2381.5,2381.4,0.4199]
[1725997715973,0.41989,2381.5,2381.3,0.794]
[1725997716177,0.41989,2381.5,2381.4,0.4199]
[1725997716679,0.41989,2381.5,2381.3,0.794]
[1725997717177,1.04957,2381.8,2381.3,0.3741]
[1725997717384,0.4199,2381.4,2381.3,0.794]
[1725997717774,1.04961,2381.7,2381.3,0.794]
[1725997718282,0.4199,2381.4,2381.3,0.794]
[1725997718481,0.4199,2381.4,2381.0,45.12991]
[1725997718482,0.41995,2381.1,2381.0,40.8]
[1725997718687,1.04988,2381.1,2380.8,0.41999]
[1725997718870,0.41998,2381.0,2380.9,0.41998]
[1725997719186,0.41997,2381.0,2380.9,40.8]
[1725997719687,0.81816,2381.1,2381.0,0.41997]
[1725997719885,0.41996,2381.1,2381.0,0.41997]
[1725997720075,0.41996,2381.1,2381.0,0.78527]
[1725997720392,0.3982,2381.4,2381.0,0.3653]
[1725997720571,0.3866,2381.6,2381.2,3.28]
[1725997720572,0.41987,2381.6,2381.2,3.28]
[1725997720776,0.3982,2381.8,2381.2,3.28]
[1725997720989,0.3982,2381.8,2381.1,0.3932]
[1725997720990,4.102,2382.0,2381.4,3.28]
[1725997721179,4.102,2382.0,2381.5,0.3653]
[1725997721377,4.102,2382.0,2381.1,0.3932]
[1725997721378,0.41988,2381.5,2381.1,0.3932]
[1725997721577,0.41988,2381.5,2381.2,0.78522]
[1725997721777,0.41989,2381.5,2381.2,0.78522]
[1725997722280,0.41987,2381.6,2381.3,0.41991]
[1725997722585,0.41985,2381.7,2381.5,0.41987]
[1725997722788,5.15151,2382.0,2381.4,0.41988]
[1725997722990,0.41986,2381.7,2381.4,0.41988]
[1725997723876,5.74456308,2382.0,2381.2,3.6453]
[1725997724072,0.41982,2381.9,2381.4,3.28]
[1725997724277,0.41981,2381.9,2381.6,0.41985]
[1725997724777,4.102,2382.0,2381.7,0.41982]
[1725997725084,0.41983,2381.8,2381.6,0.79136]
[1725997725475,0.4198,2382.0,2381.6,0.3715]
[1725997725674,0.79867,2382.1,2381.9,0.4198]
[1725997725981,0.41977,2382.2,2381.9,0.4198]
[1725997726484,1.64256308,2382.3,2381.8,3.28]
[1725997726680,2.06231308,2382.3,2382.0,0.41978]
[1725997726887,0.41975,2382.3,2382.1,40.8]
[1725997727085,0.41975,2382.2,2382.1,40.8]
[1725997727494,0.41974,2382.3,2382.1,41.59077]
[1725997727779,11.4821,2382.7,2382.1,41.59077]
[1725997727780,1.64256308,2382.7,2382.1,44.65766938]
[1725997727992,1.64256308,2382.8,2382.4,0.41971]
[1725997728176,0.41968,2382.7,2382.4,0.41971]
[1725997728372,0.41968,2382.7,2382.3,3.28]
[1725997728373,1.64256308,2382.8,2382.5,3.28]
[1725997728579,1.64256308,2383.2,2382.7,3.28]
[1725997728780,0.41962,2383.0,2382.8,0.81784]
[1725997729385,0.41961,2383.1,2382.8,0.81784]
[1725997729579,0.41963,2383.0,2382.8,0.81785]
[1725997730078,0.4196,2383.1,2382.9,0.41962]
[1725997730279,0.41959,2383.2,2382.8,0.3982]
[1725997730484,0.4196,2383.1,2382.8,0.81783]
[1725997730885,1.04891,2383.3,2382.8,0.3982]
[1725997731189,0.41963,2382.9,2382.8,0.3982]
[1725997731387,0.41963,2383.0,2382.8,0.3982]
[1725997731797,1.64256308,2383.1,2382.8,0.3982]
[1725997731979,0.41963,2382.9,2382.8,0.3982]
[1725997732181,1.64256308,2383.1,2382.2,0.3906]
[1725997732385,0.41969,2382.6,2382.3,0.7624]
[1725997732586,0.41972,2382.4,2382.1,40.8]
[1725997732784,0.41973,2382.4,2382.1,41.21976]
[1725997732991,0.41971,2382.5,2382.1,40.8]
[1725997733290,0.4197,2382.6,2382.3,0.41973]
[1725997733491,0.41972,2382.5,2382.1,40.8]
[1725997733787,0.41972,2382.5,2382.3,0.41973]
[1725997733989,1.43244,2382.8,2382.1,40.8]
[1725997733990,2.02586308,2382.8,2382.1,40.8]
[1725997734190,2.69173308,2382.7,2382.1,40.8]
[1725997734389,1.04926,2382.5,2382.1,40.8]
[1725997734595,1.64256308,2382.6,2382.1,40.8]
[1725997734896,0.41974,2382.3,2382.1,41.21976]
[1725997735497,0.41973,2382.4,2382.2,0.41975]
[1725997735997,0.3881,2382.5,2382.1,40.8]
[1725997735998,0.41975,2382.2,2382.1,40.8]
[1725997737699,0.41978,2382.1,2381.9,0.41979]
[1725997738299,0.41977,2382.1,2382.0,40.8]
[1725997738885,0.3868,2382.3,2382.2,0.41975]
[1725997739086,4.102,2382.6,2382.0,40.8]
[1725997739292,0.41973,2382.4,2382.2,0.41975]
[1725997739493,0.41972,2382.4,2382.2,0.41975]
[1725997739689,0.41974,2382.3,2382.2,0.41975]
[1725997739892,0.3822,2382.5,2382.0,40.8]
[1725997740100,0.41972,2382.4,2382.2,0.41974]
[1725997740299,0.41972,2382.4,2382.0,40.8]
[1725997740605,0.41973,2382.4,2382.2,0.41975]
[1725997740902,0.41974,2382.3,2382.2,0.41975]
[1725997741100,0.41974,2382.3,2382.1,0.41976]
[1725997741394,0.41977,2382.1,2382.0,40.8]
[1725997741799,0.3822,2382.5,2382.2,0.41975]
[1725997741992,0.3822,2382.5,2382.0,40.8]
[1725997742186,1.44415,2382.8,2382.5,0.4197]
[1725997742187,0.395,2382.8,2382.5,0.4197]
[1725997742389,0.41967,2382.7,2382.1,1.04944]
[1725997742697,1.64256308,2383.2,2382.2,0.7497]
[1725997742896,0.41966,2382.8,2382.6,0.41968]
[1725997743594,0.41966,2382.8,2382.7,0.41967]
[1725997743795,0.41966,2382.8,2382.3,1.41585]
[1725997743796,0.41966,2382.8,2382.6,0.41967]
[1725997745098,0.41966,2382.8,2382.7,0.41967]
[1725997745294,0.41964,2382.9,2382.7,0.41967]
[1725997745802,0.41962,2383.0,2382.8,0.41964]
[1725997746102,0.41962,2383.0,2382.9,0.757]
[1725997746295,1.04895,2383.2,2382.9,0.757]
[1725997746501,0.41961,2383.0,2382.9,0.757]
[1725997746704,0.4196,2383.1,2382.9,1.17663]
[1725997746900,0.41961,2383.0,2382.9,0.757]
[1725997747992,4.1968,2383.0,2382.4,1.04929]
[1725997748205,0.79404,2382.9,2382.7,0.41965]
[1725997748391,0.79404,2382.9,2382.8,0.41965]
[1725997748594,0.4196,2383.1,2382.9,0.41962]
[1725997749393,1.84302,2383.3,2382.5,5.83674]
[1725997749394,0.3976,2383.3,2382.5,5.83674]
[1725997749596,1.44652,2383.3,2382.5,5.83674]
[1725997749891,1.44652,2383.3,2382.9,0.41963]
[1725997750094,0.41962,2383.0,2382.9,0.41963]
[1725997750412,1.04899,2383.2,2382.9,0.41963]
[1725997750707,0.41962,2383.0,2382.8,0.41964]
[1725997750891,0.3976,2383.3,2383.0,0.4196]
[1725997751197,0.41959,2383.2,2383.0,0.41961]
[1725997751405,0.41959,2383.2,2383.1,0.4196]
[1725997751590,0.3976,2383.3,2382.8,3.27]
[1725997751591,0.41961,2383.1,2382.8,3.27]
[1725997751796,0.41961,2383.1,2383.0,0.41961]
[1725997752395,0.3976,2383.3,2382.9,1.04908]
[1725997752597,4.4887,2383.6,2383.2,3.27]
[1725997752797,4.4887,2383.6,2383.0,1.1157]
[1725997752798,4.102,2384.0,2383.4,4.31884]
[1725997753000,0.41946,2383.9,2383.8,3.27]
[1725997753318,2.01726308,2384.2,2383.7,0.41948]
[1725997753600,2.01726308,2384.2,2383.6,3.27]
[1725997753804,0.41946,2383.9,2383.6,3.6895]
[1725997754007,2.69115308,2384.1,2383.5,41.5454]
[1725997754194,0.41947,2383.9,2383.6,3.27]
[1725997754396,0.4195,2383.7,2383.5,41.1712]
[1725997754599,0.41947,2383.9,2383.5,41.1712]
[1725997754896,0.41951,2383.6,2383.5,41.1712]
[1725997755095,0.4195,2383.7,2383.5,41.1712]
[1725997755398,0.41949,2383.7,2383.1,4.06378]
[1725997755599,0.41949,2383.7,2383.1,3.6442]
[1725997755600,0.41957,2383.3,2383.1,3.6442]
[1725997755801,0.7553,2383.6,2383.1,0.3742]
[1725997756008,0.7553,2383.6,2383.2,40.8]
[1725997756009,0.41956,2383.3,2383.2,40.8]
[1725997756198,1.04882,2383.5,2383.0,0.3813]
[1725997756199,0.41958,2383.2,2383.0,0.3813]
[1725997756705,0.41957,2383.3,2383.1,41.1816]
[1725997757208,1.04882,2383.5,2383.1,41.1816]
[1725997757407,0.41958,2383.2,2383.1,41.1816]
[1725997757704,0.41958,2383.2,2383.1,0.3816]
[1725997757901,0.4196,2383.1,2383.0,0.3813]
[1725997758107,0.41963,2382.9,2382.8,0.3723]
[1725997758302,0.41963,2382.9,2382.8,41.1723]
[1725997759102,0.41963,2383.0,2382.8,41.1723]
[1725997759301,0.41961,2383.1,2382.8,41.59193]
[1725997759608,2.69142308,2383.4,2382.8,41.59193]
[1725997759609,0.41962,2383.0,2382.8,41.59193]
[1725997759903,0.41962,2383.0,2382.5,0.3828]
[1725997759904,0.41966,2382.8,2382.5,0.8025]
[1725997760109,0.41967,2382.7,2382.6,0.3723]
[1725997760404,0.41967,2382.7,2382.6,41.1723]
[1725997760806,4.61647,2382.7,2382.2,0.3723]
[1725997761110,4.61647,2382.7,2382.3,0.385]
[1725997761111,0.41972,2382.4,2382.3,0.385]
[1725997761406,0.41972,2382.4,2382.3,41.185]
[1725997761707,2.03916308,2382.9,2382.4,0.41971]
[1725997761708,1.44571,2382.9,2382.4,0.41971]
[1725997761901,1.43777,2383.0,2382.3,41.185]
[1725997762097,0.41969,2382.6,2382.4,0.41971]
[1725997762407,0.41968,2382.6,2382.4,0.41971]
[1725997762607,0.41967,2382.7,2382.5,0.4197]
[1725997762907,1.04908,2382.9,2382.4,0.41971]
[1725997763107,0.41968,2382.7,2382.5,0.4197]
[1725997763410,1.04908,2382.9,2382.4,0.41971]
[1725997763411,0.41969,2382.6,2382.4,0.41971]
[1725997763815,0.41969,2382.6,2382.3,41.185]
[1725997764108,0.41968,2382.7,2382.3,41.185]
[1725997764303,0.41968,2382.7,2382.5,0.41969]
[1725997764607,1.04908,2382.9,2382.5,0.41969]
[1725997764608,0.41968,2382.6,2382.5,0.41969]
[1725997764799,0.41967,2382.7,2382.5,0.41969]
[1725997766201,0.41967,2382.7,2382.3,41.185]
[1725997766202,0.3887,2383.0,2382.6,0.41967]
[1725997766407,0.3887,2383.0,2382.7,0.3878]
[1725997766408,0.41965,2382.8,2382.7,0.3878]
[1725997768713,0.4197,2382.5,2382.4,0.41971]
[1725997768914,0.4197,2382.5,2382.4,0.41972]
[1725997769513,0.41969,2382.6,2382.3,41.5542]
[1725997769815,2.69166308,2382.9,2382.3,41.5542]
[1725997770019,2.69166308,2382.9,2382.6,0.41968]
[1725997770020,0.41967,2382.7,2382.6,0.41968]
[1725997770520,0.41967,2382.7,2382.3,41.5542]
[1725997770521,0.41966,2382.8,2382.7,0.41966]
[1725997772111,0.41966,2382.8,2382.7,0.41967]
[1725997772322,3.08032308,2383.0,2382.6,0.41967]
[1725997772614,0.41966,2382.8,2382.6,0.41967]
[1725997772819,3.08032308,2383.0,2382.6,0.41967]
[1725997772820,0.41967,2382.7,2382.6,0.41967]
[1725997773021,0.41967,2382.7,2382.3,42.99589924]
[1725997773022,0.41966,2382.8,2382.7,0.41967]
[1725997774710,3.08032308,2383.0,2382.7,0.41967]
[1725997774912,1.64256308,2383.0,2382.7,0.41967]
[1725997775111,0.41963,2382.9,2382.8,0.7801]
[1725997776017,0.3966,2383.3,2382.8,0.7801]
[1725997776018,4.102,2383.5,2383.1,0.4196]
[1725997776227,0.41954,2383.5,2383.3,0.41956]
[1725997776525,1.64256308,2383.6,2383.4,40.8]
[1725997776720,0.41953,2383.5,2383.4,40.8]
[1725997776910,2.69129308,2383.7,2383.4,40.8]
[1725997777323,0.41951,2383.6,2383.4,41.21953]
[1725997778727,0.41953,2383.5,2383.4,40.8]
[1725997780021,4.61473,2383.5,2383.4,40.8]
[1725997780523,1.64256308,2383.7,2383.4,41.21953]
[1725997780716,0.41951,2383.6,2383.4,41.21953]
[1725997781116,0.41951,2383.6,2383.4,40.8]
[1725997781318,0.41951,2383.6,2383.4,41.21954]
[1725997781813,1.64256308,2383.8,2383.4,40.8]
[1725997782016,2.06203308,2383.8,2383.6,0.4195]
[1725997782216,0.4195,2383.7,2383.6,0.41951]
[1725997782418,2.06204308,2383.8,2383.6,0.41951]
[1725997782618,2.06204308,2383.8,2383.6,0.80291]
[1725997782819,0.41951,2383.6,2383.4,41.21953]
[1725997783025,0.41951,2383.6,2383.4,41.60293]
[1725997783224,1.64256308,2383.8,2383.4,41.60293]
[1725997783225,2.69126308,2383.8,2383.4,41.60293]
[1725997783521,0.41953,2383.5,2383.4,41.1834]
[1725997783922,0.41953,2383.5,2383.4,41.60294]
[1725997784123,0.41953,2383.5,2383.4,41.1834]
[1725997784720,0.41953,2383.5,2383.4,40.8]
[1725997784922,0.41956,2383.3,2383.2,0.79237]
[1725997785134,0.41956,2383.4,2383.2,0.79237]
[1725997785428,0.41956,2383.3,2383.2,0.3728]
[1725997785928,0.41956,2383.3,2383.2,41.1728]
[1725997786324,0.41956,2383.3,2383.2,41.59238]
[1725997786524,0.41956,2383.3,2383.2,41.1728]
[1725997787822,4.61556,2383.3,2383.2,40.8]
[1725997788223,6.25812308,2383.3,2383.2,40.8]
[1725997788632,0.41956,2383.3,2383.2,40.8]
[1725997789033,0.41956,2383.3,2383.2,41.1984]
[1725997789424,2.06211308,2383.4,2383.2,41.1984]
[1725997789629,0.41956,2383.3,2383.2,41.61797]
[1725997789832,0.41956,2383.3,2383.2,41.1984]
[1725997790030,0.41956,2383.3,2383.2,40.8]
[1725997790334,3.11103308,2383.3,2383.2,40.8]
[1725997790632,2.06212308,2383.3,2383.2,40.8]
[1725997791633,2.06212308,2383.3,2382.7,0.3984]
[1725997791634,11.24491,2383.3,2382.7,0.3984]
[1725997791831,1.04904,2383.0,2382.7,0.7859]
[1725997792042,0.41965,2382.8,2382.7,0.7859]
[1725997792241,10.91605231,2382.8,2382.1,1.0794195]
[1725997792542,10.91605231,2382.8,2382.0,0.3875]
[1725997792543,0.41977,2382.1,2382.0,0.3875]
[1725997792739,1.64605231,2382.3,2381.7,0.3905]
[1725997792931,4.31933,2382.4,2381.5,3.6505]
[1725997792932,0.41985,2381.7,2381.5,3.6505]
[1725997793130,2.69553231,2382.0,2381.5,0.3805]
[1725997793131,0.41986,2381.6,2381.5,0.3805]
[1725997793438,1.64605231,2381.9,2381.5,3.6505]
[1725997793635,1.64605231,2382.1,2381.6,40.8]
[1725997793841,0.41983,2381.8,2381.6,40.8]
[1725997796041,0.41984,2381.7,2381.6,40.8]
[1725997796234,1.04944,2382.1,2381.6,40.8]
[1725997796443,2.69549231,2382.1,2381.6,40.8]
[1725997796641,0.41983,2381.8,2381.6,40.8]
[1725997796838,0.41984,2381.7,2381.6,40.8]
[1725997798034,0.41983,2381.8,2381.6,40.8]
[1725997798538,0.41983,2381.8,2381.7,0.3774]
[1725997800440,0.41995,2381.1,2381.0,0.25]
[1725997800634,0.42005,2380.6,2380.4,0.7494]
[1725997800833,0.42005,2380.5,2380.4,0.7494]
[1725997801033,0.42007,2380.4,2379.9,3.27]
[1725997801234,4.52201,2380.8,2380.1,3.27]
[1725997801541,4.52201,2380.8,2380.5,3.27]
[1725997801542,4.102,2380.8,2380.5,3.27]
[1725997801739,7.372,2381.3,2380.4,17.8]
[1725997801941,0.42001,2380.8,2380.4,17.8]
[1725997802241,2.03132857,2381.2,2380.4,17.8]
[1725997802242,0.41999,2380.9,2380.4,17.8]
[1725997802540,0.3893,2381.2,2380.6,0.42003]
[1725997802737,0.3893,2381.2,2380.7,0.3728]
[1725997802944,0.42003,2380.7,2380.4,17.8]
[1725997803142,0.42001,2380.8,2380.4,18.59287]
[1725997803441,1.04988,2381.1,2380.4,18.1728]
[1725997803442,4.03,2381.1,2380.4,18.1728]
[1725997803635,0.3893,2381.2,2380.4,17.8]